Cogmind - Beta 15 @@@ ROGUE MODE // 2025.06.14 @ 15:44:31 Player: dorusv Result: Self-destructed Performance ------------- Evolutions (1) 500 Regions Visited (4) 800 Robots Destroyed (13) 65 Value Destroyed (218) 218 Prototype IDs (0) 0 Alien Tech Used (0) 0 Bonus (54) 54 TOTAL SCORE: 1637 Bonus ------- Follower Combat Kills 78 Friendly Fire -24 Cogmind --------- Core Integrity 92/400 Matter 299/300 Energy 125/125 System Corruption 15% Temperature Cool (0) Movement Core (200) Ox3 Location -9/Mines Parts ------- > --- POWER (1) -------- Light Ion Engine > --- PROPULSION (2) --- (None) > --- UTILITY (3) ------ Small Storage Unit Improved Terrain Scanner Seismic Detector > --- WEAPON (3) ------- (None) > --- INVENTORY (8) ---- Light Ion Engine Peak State ------------ > --- POWER ------------ Light Ion Engine > --- PROPULSION ------- Flight Unit Flight Unit > --- UTILITY ---------- Small Storage Unit Improved Terrain Scanner Seismic Detector > --- WEAPON ----------- Light Assault Rifle Light Assault Rifle > --- INVENTORY -------- Light Ion Engine [Rating: 10] Favorites ----------- Power Light Ion Engine Engine Light Ion Engine Propulsion Wheel Wheel Wheel Flight Unit Flight Unit Utility Small Storage Unit Device Seismic Detector Storage Small Storage Unit Weapon Light Assault Rifle Energy Gun Small Laser Ballistic Gun Light Assault Rifle Launcher Grenade Launcher Build | -11 -10 -10 -9 -9 ------- Run | Yrd Mat Min Mat Min Slots Evolved 2 | . . . 2 . Power . | . . . . . Propulsion . | . . . . . Utility 1 | . . . 1 . Weapon 1 | . . . 1 . Parts Attached 15 | 7 . 1 2 5 Power 3 | 1 . . 1 1 Engine 3 | 1 . . 1 1 Core . | . . . . . Reactor . | . . . . . Propulsion 4 | 2 . . . 2 Treads . | . . . . . Leg . | . . . . . Wheel 2 | 2 . . . . Hover . | . . . . . Flight 2 | . . . . 2 Utility 3 | 2 . . 1 . Device 2 | 1 . . 1 . Storage 1 | 1 . . . . Processor . | . . . . . Hackware . | . . . . . Protection . | . . . . . Artifact . | . . . . . Weapon 5 | 2 . 1 . 2 Energy Gun 1 | 1 . . . . Energy Cannon . | . . . . . Ballistic Gun 3 | 1 . . . 2 Ballistic Cannon . | . . . . . Launcher 1 | . . 1 . . Special Weapon . | . . . . . Impact Weapon . | . . . . . Slashing Weapon . | . . . . . Piercing Weapon . | . . . . . Special Melee Weapon . | . . . . . Unidentified Prototypes . | . . . . . Parts Lost 5 | . . . 1 4 Power . | . . . . . Propulsion 2 | . . . . 2 Utility . | . . . . . Weapon 3 | . . . 1 2 Highest Loss Streak 4 | . . . 1 4 To Critical Strikes . | . . . . . Average Backups 2 | . 3 3 1 1 Power 1 | . 1 2 1 1 Propulsion . | . . . . . Utility . | . 1 1 . . Weapon . | . . . . . Tool/Special . | . . . . . Unused Backups . | . . . . . Power . | . . . . . Propulsion . | . . . . . Utility . | . . . . . Weapon . | . . . . . Tool/Special . | . . . . . Average Slot Usage (%) 60 | . 92 37 53 67 Engine 7 | . 12 . 11 11 Wheel 5 | . 25 . . . Flight 2 | . . . . 11 Device 17 | . 14 14 21 22 Storage 12 | . 14 14 11 11 Energy Gun 2 | . 12 . . . Ballistic Gun 5 | . 12 . . 12 Launcher 5 | . . 9 9 . Peak Build Rating 10 | 7 7 3 7 10 Average Rating 5 | 5 6 2 6 8 On Entrance 3 | . 7 2 3 6 Naked Turns . | . . . . . Heaviest Build 13 | 13 13 9 13 12 Greatest Support 20 | 20 20 3 3 8 Greatest Overweight (x) 4 | . 1 2 4 3 Average Overweight (x) 1 | . . 1 3 1 Largest Inventory Capacity 8 | 8 8 8 8 8 Average Capacity 7 | 6 8 8 8 8 Most Carried 4 | 2 4 4 2 1 Average Carried 2 | 1 3 3 1 1 Final Capacity 8 | 8 8 8 8 8 Final Carried 4 | 2 4 3 1 1 Class Distribution -------------------- 84% | Mutant 15% | Scavenger-Mutant Dominant Class ---------------- Mutant | -10/Materials Mutant | -10/Mines Mutant | -9/Materials Scavenger-Mutant | -9/Mines Resources | -11 -10 -10 -9 -9 ----------- Run | Yrd Mat Min Mat Min Matter Collected 417 | 224 59 2 55 77 Remotely . | . . . . . Salvage Created 242 | 12 137 11 46 36 Parts 23 | 4 4 5 8 2 Haulers Intercepted . | . . . . . Recyclers Shooed 1 | . . . . 1 Parts Field Recycled . | . . . . . Retrieved Matter . | . . . . . Parts Self-Destructed . | . . . . . Prevented . | . . . . . Kills | -11 -10 -10 -9 -9 ------- Run | Yrd Mat Min Mat Min Combat Hostiles Destroyed 9 | . 3 3 2 1 Guns 4 | . 3 . . 1 AOE 5 | . . 3 2 . Classes Destroyed 5 | 1 1 1 2 . Builder 2 | . . . 1 1 Tunneler 1 | 1 . . . . Watcher 1 | . . . 1 . Swarmer 6 | . . 3 2 1 Grunt 3 | . 3 . . . Best Kill Streak 3 | 1 2 3 3 1 Combat Bots Only 3 | . 2 3 2 1 Max Kills in Single Turn 3 | 1 1 2 3 1 Gunslinging . | . . . . . Exploded 2 | . . 2 2 . Melee . | . . . . . Uniques/NPCs Destroyed . | . . . . . Combat | -11 -10 -10 -9 -9 -------- Run | Yrd Mat Min Mat Min Hostile Shots Fired 44 | . 12 5 10 17 Missed 14 | . 2 2 2 8 Hits 30 | . 10 3 8 9 Projectile 30 | . 10 3 8 9 Damage Taken 858 | . 134 74 138 512 Core 357 | . 13 36 58 250 Absorbed by Shields . | . . . . . Core Remaining (%) 90 | 100 . 80 . . Volleys Fired 42 | 2 11 3 3 23 Largest 2 | 2 2 1 1 2 Hottest 60 | 60 60 30 30 40 Shots Fired 57 | 4 22 3 3 25 Gun 51 | 4 22 . . 25 Cannon . | . . . . . Launcher 6 | . . 3 3 . Special . | . . . . . Kinetic 38 | 2 11 . . 25 Thermal 13 | 2 11 . . . Explosive 6 | . . 3 3 . Electromagnetic . | . . . . . Robot Hit Streak 8 | 2 8 . 1 3 Robot Miss Streak 3 | 1 3 2 1 2 Penetration Max . | . . . . . Secondary Targets . | . . . . . Shots Hit Robots 24 | 3 15 . 1 5 Core Hits 25 | 1 8 4 10 2 Critical Kills . | . . . . . Critical Parts Destroyed . | . . . . . Critical Strikes . | . . . . . Melee Attacks . | . . . . . Impact . | . . . . . Slashing . | . . . . . Piercing . | . . . . . Sneak Attacks . | . . . . . Combat Hostiles . | . . . . . Follow-up Attacks . | . . . . . Damage Inflicted 673 | 37 162 195 221 58 Guns 238 | 37 162 . . 39 Cannons . | . . . . . Explosions 414 | . . 195 219 . Melee . | . . . . . Ramming 21 | . . . 2 19 Kinetic 116 | 16 61 . . 39 Thermal 122 | 21 101 . . . Explosive 414 | . . 195 219 . Electromagnetic . | . . . . . Impact . | . . . . . Slashing . | . . . . . Piercing . | . . . . . Highest Corruption 10 | . . . . 10 Average Corruption 5 | . . . . 5 Corruption Purged . | . . . . . Corruption Blocked . | . . . . . Effects 2 | . . . . 2 Message Errors 1 | . . . . 1 Weapon Failures 1 | . . . . 1 Overload Shots . | . . . . . Overflow Damage 1 | . . . . 1 Projectiles . | . . . . . Explosions . | . . . . . Melee 1 | . . . . 1 Knockbacks . | . . . . . Impact . | . . . . . Kinetic . | . . . . . Secondary . | . . . . . Self-Inflicted Damage 116 | . . 54 53 9 Shots 5 | . . 2 3 . Rammed 4 | . . . 1 3 Targets Rammed 4 | . . . 1 3 Kicked . | . . . . . Crushed . | . . . . . Highest Temperature 94 | 40 94 . . . Average Temperature 45 | 24 48 . . . Received Heat Transfer 120 | . 78 . 42 . Siege Activations . | . . . . . Martial Activations . | . . . . . Shielding Activations . | . . . . . Robots Disrupted . | . . . . . Combat Hostiles . | . . . . . Robots Corrupted 1 | . . . . 1 Combat Hostiles . | . . . . . Parts Fried 5 | . . . . 5 Impact Corruptions 1 | . . . . 1 Robots Melted . | . . . . . Combat Hostiles . | . . . . . Parts Melted 1 | . 1 . . . Heat Transferred 275 | 50 225 . . . Parts Sabotaged . | . . . . . Parts Stolen . | . . . . . Parts Stripped . | . . . . . Power Chain Reactions . | . . . . . Alert | -11 -10 -10 -9 -9 ------- Run | Yrd Mat Min Mat Min Maximum Alert Level . | . . . . . Low Security (%) 100 | 100 100 100 100 100 Level 1 . | . . . . . Level 2 . | . . . . . Level 3 . | . . . . . Level 4 . | . . . . . Level 5 . | . . . . . High Security . | . . . . . Max Security . | . . . . . Peak Influence 162 | 5 65 111 162 90 Initial 58 | . . 17 11 58 Average 35 | . 25 53 18 53 Influence Increases 497 | 5 102 121 192 77 Destroy 0b10 Robot/C 300 | . 60 60 120 60 Destroy 0b10 Robot/NC 20 | 5 . . 10 5 Destroy Leader 62 | . 20 10 22 10 Allied During Kill 18 | . . . 16 2 Successful Hack 7 | . 7 . . . Disable Machine 15 | . . 15 . . Destroy Structure 45 | . . 21 24 . Lose Combat Pursuer 30 | . 15 15 . . Influence Decreases 497 | 5 57 135 71 229 Entered New Map 142 | . . 28 20 94 Time Decay 290 | 5 57 107 41 80 Lost Part 45 | . . . 10 35 Lost Ally 20 | . . . . 20 Squads Dispatched 2 | . 1 . 1 . Investigation 2 | . 1 . 1 . Extermination . | . . . . . Reinforcement . | . . . . . Assault . | . . . . . Garrison . | . . . . . Intercept . | . . . . . Searches Triggered . | . . . . . Construction Impeded . | . . . . . Haulers Reinforced . | . . . . . Active Scanning Responses . | . . . . . Cargo Convoy Interrupts . | . . . . . Stealth | -11 -10 -10 -9 -9 --------- Run | Yrd Mat Min Mat Min Distress Signals 3 | . . . 2 1 Communications Jammed . | . . . . . Distress Signals . | . . . . . Times Spotted 22 | . 6 4 9 3 Peak Tracking Total 5 | . 2 3 5 3 Tactical Retreats 2 | . 1 1 . . Traps | -11 -10 -10 -9 -9 ------- Run | Yrd Mat Min Mat Min Traps Triggered 2 | . 2 . . . Indirectly . | . . . . . Trap Hack Attempts . | . . . . . Triggered . | . . . . . Disarmed . | . . . . . Reprogrammed . | . . . . . Reused . | . . . . . Traps Extracted . | . . . . . Installed . | . . . . . Triggered . | . . . . . Machines | -11 -10 -10 -9 -9 ---------- Run | Yrd Mat Min Mat Min Machines Disabled 1 | . . 1 . . Max in Single Turn 1 | . . 1 . . Machines Repaired . | . . . . . Machines Dismantled . | . . . . . Machines Sabotaged . | . . . . . Overloaded Fab Kills . | . . . . . Hacking | -11 -10 -10 -9 -9 --------- Run | Yrd Mat Min Mat Min Machines Accessed 2 | . 2 . . . Terminals 2 | . 2 . . . Fabricators . | . . . . . Repair Stations . | . . . . . Recycling Units . | . . . . . Scanalyzers . | . . . . . Garrison Access . | . . . . . Total Hacks 7 | . 7 . . . Successful 2 | . 2 . . . Failed 5 | . 5 . . . Catastrophic 2 | . 2 . . . Database Lockouts . | . . . . . Manual 2 | . 2 . . . Terminals 7 | . 7 . . . Fabricators . | . . . . . Repair Stations . | . . . . . Recycling Units . | . . . . . Scanalyzers . | . . . . . Garrison Access . | . . . . . Terminal Hacks 2 | . 2 . . . Branch Access Points 1 | . 1 . . . Patrol Status 1 | . 1 . . . Fabricator Hacks . | . . . . . Repair Station Hacks . | . . . . . Recycling Unit Hacks . | . . . . . Scanalyzer . | . . . . . Garrison Access Hacks . | . . . . . Unauthorized Hacks . | . . . . . Terminals . | . . . . . Fabricators . | . . . . . Repair Stations . | . . . . . Recycling Units . | . . . . . Scanalyzers . | . . . . . Garrison Access . | . . . . . Data Cores Recovered . | . . . . . Used . | . . . . . Hacking Detections 2 | . 2 . . . Full Trace Events 2 | . 2 . . . Feedback Events . | . . . . . Feedback Blocked . | . . . . . Robot Schematics Acquired . | . . . . . Robots Built . | . . . . . Authchips . | . . . . . Time . | . . . . . Total Robot Build Rating . | . . . . . Part Schematics Acquired . | . . . . . Parts Built . | . . . . . Authchips . | . . . . . Time . | . . . . . Total Part Build Rating . | . . . . . Parts Repaired . | . . . . . Time . | . . . . . Parts Recycled . | . . . . . Recycled Matter . | . . . . . Retrieved Matter . | . . . . . Retrieved Components . | . . . . . Parts Scanalyzed . | . . . . . Part Schematics Acquired . | . . . . . Parts Damaged . | . . . . . Bothacking | -11 -10 -10 -9 -9 ------------ Run | Yrd Mat Min Mat Min Used RIF Installer . | . . . . . Robots Hacked . | . . . . . Non-combat . | . . . . . Combat . | . . . . . Robot Hacks Applied . | . . . . . Relay Couplers Released . | . . . . . Fabnet Peak Effective % . | . . . . . Robots Rewired . | . . . . . Allies Hacked . | . . . . . Hacks Repelled . | . . . . . Allies | -11 -10 -10 -9 -9 -------- Run | Yrd Mat Min Mat Min Total Allies 2 | . . 2 . . Largest Group 2 | . . 2 2 1 Highest-Rated Group 52 | . . 52 52 31 Highest-Rated Ally 31 | . . 31 31 31 Total Orders . | . . . . . Ally Attacks 17 | . . . 13 4 Total Damage 209 | . . . 166 43 Kills 6 | . . . 4 2 Allies Corrupted . | . . . . . Allies Melted . | . . . . . Intel | -11 -10 -10 -9 -9 ------- Run | Yrd Mat Min Mat Min Active Infowar (turns) 826 | 35 183 254 188 166 Terrain 353 | . . . 187 166 Seismic 826 | 35 183 254 188 166 Robot Analysis Total . | . . . . . Derelict Logs Recovered 1 | . . . . 1 Drone Launches . | . . . . . Drone Recoveries . | . . . . . Exploration | -11 -10 -10 -9 -9 ------------- Run | Yrd Mat Min Mat Min Turns Passed 864 | 73 183 254 188 166 Spaces Moved 566 | 69 163 185 74 75 Core 306 | 1 22 185 74 24 Treads . | . . . . . Legs . | . . . . . Wheels 209 | 68 141 . . . Hover . | . . . . . Flight 51 | . . . . 51 Fastest Speed 50 | 50 80 100 200 117 Average Speed 128 | 79 82 132 242 146 Slowest Speed 250 | 80 100 150 250 200 Overloaded Moves . | . . . . . Propulsion Burnouts . | . . . . . Robots Hopped . | . . . . . Potential Cave-ins . | . . . . . Cave-ins Triggered 4 | . . . . 4 Exploration Rate (%) 16 | 4 26 28 9 13 Regions Visited 4 Branch Regions 2 Pre-discovered Areas . | . . . . . Known Exits Taken 1 | . 1 . . . Unknown Exits Taken 3 | 1 . 1 1 . Scrap Searched 1 | . . 1 . . Spaces Dug . | . . . . . Terrain Destroyed 51 | . . 29 22 . Melee . | . . . . . Projectile . | . . . . . AOE 51 | . . 29 22 . Terrain Rammed . | . . . . . Walls Destroyed . | . . . . . Machines Disabled . | . . . . . Actions | -11 -10 -10 -9 -9 --------- Run | Yrd Mat Min Mat Min Total 645 | 79 191 190 79 106 Wait 18 | . 16 2 . . Move 562 | 68 162 184 73 75 Hop . | . . . . . Pick Up 4 | 2 2 . . . Fast Attach 11 | 7 . . . 4 Attach 3 | . . 1 2 . Detach . | . . . . . Swap 1 | . . . . 1 Drop . | . . . . . Fire 42 | 2 11 3 3 23 Melee . | . . . . . Ram 4 | . . . 1 3 Kick . | . . . . . Crush . | . . . . . Escape Stasis . | . . . . . Rewire . | . . . . . Trap . | . . . . . Miscellaneous . | . . . . . Route ------- -11/Scrapyard -10/Materials -10/Mines -9/Materials -9/Mines History --------- Turn | Location | Event 18 | -11/Scrapyard | Discovered new exit (range 16) 74 | -11/Scrapyard | Entered Materials 83 | -10/Materials | Identified exit to Mines 257 | -10/Materials | Entered Mines 273 | -10/Mines | Met a Derelict bent on vengeance 303 | -10/Mines | Build established: Mutant 374 | -10/Mines | Discovered new exit (range 7) 511 | -10/Mines | Entered Materials 511 | -9/Materials | Accompanied by 2 allies 511 | -9/Materials | Evolved 2 slots: Utility x1, Weapon x1 516 | -9/Materials | Led the pair of lost Derelicts to an unsafe place 670 | -9/Materials | Discovered new exit (range 9) 699 | -9/Materials | Entered Mines 699 | -9/Mines | Accompanied by 1 ally 724 | -9/Mines | Assembled infested the area 797 | -9/Mines | Learned Materials garrison access intel 843 | -9/Mines | Crushed by falling debris 843 | -9/Mines | Core integrity fell below 50% 853 | -9/Mines | Crushed by falling debris 862 | -9/Mines | Crushed by falling debris 862 | -9/Mines | System corruption reached 10% 865 | -9/Mines | Crushed by falling debris 865 | -9/Mines | Self-destructed Last Messages --------------- 00834_ K-01 Serf collects debris. 00836_ U-05 Engineer builds a Wall. 00843_ The unstable cave ceiling collapses. 00843_ Crushed by falling debris. 00843_ Flight Unit destroyed. 00843_ System corrupted by crushing effect (+1). 00843_ Lgt. Assault Rifle destroyed. 00843_ System corrupted by crushing effect (+4). 00853_ The unstable cave ceiling collapses. 00853_ Crushed by falling debris. 00861_ XEZG8=LHM#X&A%S WMV EM 00862_ The unstable cave ceiling collapses. 00862_ Crushed by falling debris. 00862_ Flight Unit destroyed. 00862_ System corrupted by crushing effect (+5). 00862_ System corrupted: Lgt. Assault Rifle jammed. 00865_ The unstable cave ceiling collapses. 00865_ Crushed by falling debris. 00865_ Lgt. Assault Rifle destroyed. 00865_ System corrupted by crushing effect (+5). Map ----- +----------------------------------------------------+ | | | | | | | | | | | | | | | | | ????????????????????????????????????????????????? | | ????????????????????????????????????????????????? | | ??????????????????????????????????????? ????????? | | ????????????????????????????????????? ? ????????? | | ?????????????????#????????????????#?????????????? | | ?????????????????# ?????????????#???????????????? | | ?????????????????# ?????????????????????????????? | | ????????????? ???? ?????? ??????#??????????????? | | ??????????????????# ?????#???????????#??????????? | | ????????????? ????# #######????????????????????? | | ??????????????????? ???????????????##????? | | ???????????????????? ???????? ???? #?????? | | ????????????????????% ?? ??#??????? #?????? | | ????????????????????? " ??????###### #??????? | | ??????????????????#??? ?######## #?#?????? | | ??????????????????????# # #???????????? | | ???????????????#??????# ### ###### #??????#????? | | ??????????????????????#%#@# #???## #??????#????? | | ???????????????????## #%###%#??#?# #?????????#?? | | ???????????????????# # #????# ##??#???#???? | | ???????????????????# ######???## ##?????????? | | ???????????????????## #?????##### #??#??##??? | | ????????????????????##?????## #?#?#????#? | | ????????????#????#??????????# ##?????#???? | | ?????????????#????????????#?# ### ###????????#? | | ??????????????????? ????? ??# ### ##????????#??? | | ??????????????????? ?"? ???# ## ####?????????? | | ????????????????????????????#%## #?????????? | | ???????????????????????? ??## % ### #??#??????? | | ???????????????????????????## ## #?# #######?#?? | | ??????????????????????????### ## #?# ##??? | | ??????????????????? ???? ???# ### #?##### ##?? | | ????????????????????#???????# #?###?????# #?? | | ??????????????????????????#?# #?#??????### #?# | | ???????????????????????????## #??#??????### #?? | | ????????????????????????#???# #???????????## #?? | | ??????????????????????????#?# #????????????####?# | | ???????????????????????????#? ??????????????????? | | ????????????????????????????? ?#????????#???????? | | ????????????????????????????? #?????????????????? | | ????????????????????????????? ???#???????#??????? | | ????????????????????????????? ?#????????????????? | +----------------------------------------------------+ Best States ------------- Heat Dissipation 28 Energy Generation 10 Energy Capacity 250 Matter Stores 300 Matter Capacity 300 Sight Range 16 Terrain Scan Range 16 Terrain Scan Density 10 Evasion (%) 44 Item Schematics ----------------- None Robot Schematics ------------------ None Fabricated ------------ Nothing Repaired ---------- Nothing Alien Tech Used ----------------- None Achievements -------------- None Challenges ------------ None Game ------ Seed SpikedDynamicRipper Manual? 0 Play Time 00:09:01 Cumulative 12.2 hours Start 2025.06.01 @ 21:02:42 End 2025.06.14 @ 15:44:31 Sessions 1 Manual Loads 0 Difficulty Rogue Special Mode None Game No. 42 Rogue 39 Adventurer 3 Explorer 0 Win Type - Total 0 Types 0/0/0/0/0/0/0/0/0/0 Lore% 10 Gallery% 18 Achievement% 18 Wizard Run 0 Options --------- Layout 0 ASCII 0 Keyboard 1 Movement Arrows Keybinds 0 Fullscreen 2 Font 24/Smallcaps Map View 183x50 Zoom Use 0% Tactical HUD 1 Map Filters NONE Filters NONE Steam 1 RUN: 409cc4d1-3ecd-4c7a-968d-0dd5463473b2